Workbook

Sheet Sheet1
A1: USDA - RUS | C1: Title of Information Document | I1: OMB No.
J2: 0572-0112
A3: SUMMARY OF INFORMATION COLLECTION | C3: 7 CFR 1775 Technical Assistance Programs | I3: Date Prepared
J4: 2017-05-18
A5: INSTRUCTIONS: | E5: > | F5: (f) TOTAL | H5: (h) TOTAL
A6: Use this form when a single information collection document involves multiple reporting and | E6: > | F6: - | G6: = (e) Average | H6: - | I6: = (g) Average | J6: - | K6: = (j) Average
A7: recordkeeping requirements. | E7: > | F7: (d) TOTAL | H7: (f) TOTAL | J7: (i) TOTAL
A8: IDENTIFICATION OF REPORTING AND RECORDKEEPPING REQUIREMENTS | G8: ANNUAL BURDEN
C9: FORM | F9: REPORTS | J9: RECORDS
C10: NO(s) | D10: NO. OF | E10: NO. OF | F10: TOTAL | G10: HOURS | H10: TOTAL | I10: NO. OF | J10: ANNUAL | K10: TOTAL
A11: SECTION OF | C11: (If "none" | D11: RESPON- | E11: RESPONSES | F11: ANNUAL | G11: PER | H11: HOURS | I11: RECORD- | J11: HOURS PER | K11: RECORD-
A12: REGULATIONS | B12: DESCRIPTION | C12: so state) | D12: DENTS | E12: PER | F12: RESPONSES | G12: RESPONSE | H12: (Col. f & g) | I12: KEEPERS | J12: RECORD- | K12: KEEPING
E13: RESPON- | F13: (Col. d & e) | J13: KEEPER | K13: HOURS
E14: DENT | K14: (Col. i & j)
A15: (a) | B15: (b) | C15: (c) | D15: (d) | E15: (e) | F15: (f) | G15: (g) | H15: (h) | I15: (i) | J15: (j) | K15: (k)
B16: Items Cleared With This Package*
B18: Initial Application/Application Process
A20: 1775.10(c)(6) | B20: Documentation of assistance provided to Rural Development employees | C20: Written | D20: 82 | E20: 1 | F20: =SUM(D20*E20) -> 82 | G20: 0.25 | H20: =SUM(F20*G20) -> 20.5
A22: 1775.10(c)(9) | B22: Indirect Cost Agreement | C22: Written | D22: 82 | E22: 1 | F22: =SUM(D22*E22) -> 82 | G22: 1 | H22: =SUM(F22*G22) -> 82
A24: 1775.10(c)(10) | B24: Statement of Compliance , Title VI of Civil Rights Act of 1964 | C24: Written | D24: 82 | E24: 1 | F24: =SUM(D24*E24) -> 82 | G24: 0.5 | H24: =SUM(F24*G24) -> 41
A26: 1775.10 | B26: Statement concerning assistance under the National Forest Service-Dependent Rural Communities Economic Diversification Act | C26: Written | D26: 82 | E26: 1 | F26: =SUM(D26*E26) -> 82 | G26: 1 | H26: =SUM(F26*G26) -> 82
A28: 1775.10(d)(1) | B28: Legal Authority and Responsibility | C28: Written | D28: 82 | E28: 1 | F28: =SUM(D28*E28) -> 82 | G28: 0.25 | H28: =SUM(F28*G28) -> 20.5
A30: 1775.10(d)(2) | B30: Evidence of Tax Exempt Status | C30: Written | D30: 82 | E30: 1 | F30: =SUM(D30*E30) -> 82 | G30: 0.25 | H30: =SUM(F30*G30) -> 20.5
A32: 1775.10(d)(3) | B32: Narrative | C32: Written
B33: Initial Submission | D33: 82 | E33: 1 | F33: =SUM(D33*E33) -> 82 | G33: 2 | H33: =SUM(F33*G33) -> 164
B34: Revised Submission | D34: 53 | E34: 1 | F34: =SUM(D34*E34) -> 53 | G34: 2 | H34: 106
A36: 1775.10(d)(8) | B36: Scope of Work | C36: Written
B37: Initial Submission | D37: 82 | E37: 1 | F37: =SUM(D37*E37) -> 82 | G37: 12 | H37: =SUM(F37*G37) -> 984
B38: Revised Submission | D38: 53 | E38: 1 | F38: =SUM(D38*E38) -> 53 | G38: 12 | H38: 636
A40: 1775.10(d)(6) | B40: Budget justification | C40: Written
B41: Initial Submission | D41: 82 | E41: 1 | F41: =SUM(D41*E41) -> 82 | G41: 10 | H41: =SUM(F41*G41) -> 820
B42: Revised Submission | D42: 53 | E42: 1 | F42: =SUM(D42*E42) -> 53 | G42: 10 | H42: 530
A44: 1775.10(d)(4) | B44: Latest Financial Information | C44: Written | D44: 82 | E44: 1 | F44: =SUM(D44*E44) -> 82 | G44: 1 | H44: =SUM(F44*G44) -> 82
A46: 1775.10(d)(7) | B46: Evidence of Financial Management System | C46: Written | D46: 82 | E46: 1 | F46: =SUM(D46*E46) -> 82 | G46: 0.25 | H46: =SUM(F46*G46) -> 20.5
B48: Post-Application
A49: 1775.13 | B49: Grant Agreement | C49: RUS Guide 1775-1 | D49: 53 | E49: 1 | F49: =SUM(D49*E49) -> 53 | G49: 2 | H49: =SUM(F49*G49) -> 106
A51: 1775.2 | B51: Project Performance Report | C51: Written | D51: 53 | E51: 4 | F51: =SUM(D51*E51) -> 212 | G51: 12 | H51: =SUM(F51*G51) -> 2544
A53: 1775.21 | B53: Audit | C53: Written | D53: 12 | E53: 1 | F53: =SUM(D53*E53) -> 12 | G53: 3 | H53: =SUM(F53*G53) -> 36
A55: 1775.21 | B55: Financial Statements | C55: Written | D55: 41 | E55: 1 | F55: =SUM(D55*E55) -> 41 | G55: 1 | H55: =SUM(F55*G55) -> 41
B58: Items Cleared Under Other Packages
A60: 1775.10(c)(3) | B60: Certification Regarding Debarment, Suspension, and Other Responsibility Matters - Primary Covered Transactions | C60: AD-1047 (0505-0027) | D60: 45 | E60: 1 | F60: =SUM(D60*E60) -> 45 | G60: 0.25 | H60: =SUM(F60*G60) -> 11.25
A62: 1775.10(c)(5) | B62: Certification Regarding Debarment | C62: AD-1048 (0505-0027) | D62: 45 | E62: 1 | F62: =SUM(D62*E62) -> 45 | G62: 0.25 | H62: =SUM(F62*G62) -> 11.25
A64: 1775.10(c)(4) | B64: Certification Regarding Drug-Free Workplace Requirements (Grants) Alternative I - for Grantees Other Than Individuals | C64: AD-1049 (0505-0027) | D64: 45 | E64: 1 | F64: =SUM(D64*E64) -> 45 | G64: 0.25 | H64: =SUM(F64*G64) -> 11.25
B66: Total Hours This Package | D66: 82 | F66: 1514 | H66: 6369 | J66: PAGE 1
B68: Representations Regarding Felony Conviction and Tax | C68: AD-3030 | D68: 82 | E68: 1 | F68: =SUM(D68*E68) -> 82 | G68: 0.25 | H68: =SUM(F68*G68) -> 20.5
B69: Delinquent Status for Corporate Applicants | C69: (0505-0025)
B71: Assurances Regarding Felony Conviction and Tax Deilnquent | C71: AD-3031 | D71: 41 | E71: 1 | F71: 41 | G71: 0.05 | H71: 2.05
B72: Status for Corporate Applicants | C72: (0505-0025)
A75: 1775.10(c)(1) | B75: Application for Federal Assistance (Non-construction Programs) | C75: SF-424
B76: Initial Submission | C76: (4040-0004) | D76: 82 | E76: 1 | F76: 142 | G76: 0.75 | H76: =SUM(F76*G76) -> 106.5
B77: Revised Submission | D77: 26 | E77: 1 | F77: 26 | G77: 0.75 | H77: 19.5
A79: 1775.10(c)(2) | B79: Budget Information--Non-Construction Programs | C79: SF-424A
B80: Initial Submission | C80: (4040-0006) | D80: 82 | E80: 1 | F80: 142 | G80: 3 | H80: =SUM(F80*G80) -> 426
B81: Revised Submission | D81: 26 | E81: 1 | F81: 26 | G81: 3 | H81: 78
A83: 1775.10(c)(2) | B83: Assurances--Non-construction Programs | C83: SF-424B
B84: Initial Submission | C84: (4040-0007) | D84: 82 | E84: 1 | F84: 142 | G84: 0.25 | H84: =SUM(F84*G84) -> 35.5
B85: Revised Submission | D85: 26 | E85: 1 | F85: 26 | G85: 0.25 | H85: 6.5
A87: 1775.10(c)(8) | B87: Equal Opportunity Agreement | C87: RD 400-1 | D87: 45 | E87: 1 | F87: =SUM(D87*E87) -> 45 | G87: 0.17 | H87: =SUM(F87*G87) -> 7.65
C88: (0575-0018)
A90: 1775.10(c)(7) | B90: Assurance Agreement | C90: RD 400-4 | D90: 45 | E90: 1 | F90: =SUM(D90*E90) -> 45 | G90: 0.25 | H90: =SUM(F90*G90) -> 11.25
C91: (0575-0018)
A93: 1775.18(a) | B93: Request for Advance or Reimbursement | C93: SF-270 | D93: 35 | E93: 12 | F93: =SUM(D93*E93) -> 420 | G93: 1 | H93: =SUM(F93*G93) -> 420
C94: (4040-0012) | D94: 10 | E94: 4 | F94: =SUM(D94*E94) -> 40 | G94: 1 | H94: =SUM(F94*G94) -> 40
A96: 1775.10(c)(11) | B96: Disclosure of Lobbying Activities | C96: SF LLL | D96: 45 | E96: 1 | F96: =SUM(D96*E96) -> 45 | G96: 0.25 | H96: =SUM(F96*G96) -> 11.25
C97: (4040-0013)
B99: Federal Financial Report | C99: SF-425 | D99: 45 | E99: 4 | F99: =SUM(D99*E99) -> 180 | G99: 1.5 | H99: =SUM(F99*G99) -> 270
C100: (4040-0014)
A101: RUS Form 36 (07-91) | J101: Page __2__ of __2__
A103: *Note: Applications: Private sector responses = 66. American Indian responses = 16. Total = 82
A104: ** Note: Obligations/Approvals: Private sector responses = 41; Tribal responses = 12; Total = 53

Sheet Sheet2

Sheet Sheet3
